Cogmind - Beta 12 X1 @@@ ROGUE MODE // 2022.07.14 @ 15:26:43 Player: Plexion Result: Destroyed by G-34 Mercenary with Small Laser Performance ------------- Evolutions (0) 0 Regions Visited (2) 400 Robots Destroyed (12) 60 Value Destroyed (386) 386 Prototype IDs (0) 0 Alien Tech Used (0) 0 Bonus (0) 0 TOTAL SCORE: 846 Bonus ------- None Cogmind --------- Core Integrity 0/250 Matter 251/300 Energy 239/250 System Corruption 4% Temperature Cool (6) Movement Core (250) Ox4 Location -10/Mines Parts ------- > --- POWER (1) -------- Ion Engine > --- PROPULSION (2) --- (None) > --- UTILITY (2) ------ Improved Heat Sink Small Storage Unit > --- WEAPON (2) ------- EM Pulse Gun Small Laser > --- INVENTORY (8) ---- Ion Engine Huge Storage Unit Grenade Launcher Peak State ------------ > --- POWER ------------ Ion Engine > --- PROPULSION ------- Light Treads Light Treads > --- UTILITY ---------- Improved Heat Sink Small Storage Unit > --- WEAPON ----------- Small Laser Assault Rifle > --- INVENTORY -------- Ion Engine EM Pulse Gun [Rating: 9] Favorites ----------- Power Ion Engine Engine Ion Engine Propulsion Light Treads Treads Light Treads Utility Small Storage Unit Device Improved Heat Sink Storage Small Storage Unit Weapon Assault Rifle Energy Gun Small Laser Ballistic Gun Assault Rifle Build | -11 -10 -10 ------- Run | Scr Mat Min Slots Evolved . | . . . Power . | . . . Propulsion . | . . . Utility . | . . . Weapon . | . . . Parts Attached 10 | 6 3 1 Power 3 | 1 2 . Engine 3 | 1 2 . Core . | . . . Reactor . | . . . Propulsion 2 | 2 . . Treads 2 | 2 . . Leg . | . . . Wheel . | . . . Hover . | . . . Flight . | . . . Utility 2 | 1 1 . Device 1 | . 1 . Storage 1 | 1 . . Processor . | . . . Hackware . | . . . Protection . | . . . Artifact . | . . . Weapon 3 | 2 . 1 Energy Gun 2 | 1 . 1 Energy Cannon . | . . . Ballistic Gun 1 | 1 . . Ballistic Cannon . | . . . Launcher . | . . . Special Weapon . | . . . Impact Weapon . | . . . Slashing Weapon . | . . . Piercing Weapon . | . . . Special Melee Weapon . | . . . Unidentified Prototypes . | . . . Parts Lost 4 | . 1 3 Power 1 | . 1 . Propulsion 2 | . . 2 Utility . | . . . Weapon 1 | . . 1 Highest Loss Streak 3 | . 1 3 To Critical Strikes . | . . . Average Slot Usage (%) 98 | . 98 98 Engine 14 | . 14 14 Treads 27 | . 28 27 Device 12 | . 12 14 Storage 14 | . 14 14 Energy Gun 14 | . 14 14 Ballistic Gun 13 | . 14 13 Naked Turns . | . . . Heaviest Build 14 | 13 14 14 Greatest Support 40 | 40 40 40 Greatest Overweight (x) . | . . . Average Overweight (x) . | . . . Largest Inventory Capacity 8 | 8 8 8 Average Capacity 7 | 6 8 8 Most Carried 5 | 2 4 5 Average Carried 3 | . 3 4 Final Capacity 8 | 8 8 8 Final Carried 4 | 2 4 3 Class Distribution -------------------- 100% | Mutant Dominant Class ---------------- Mutant | -10/Materials Mutant | -10/Mines Resources | -11 -10 -10 ----------- Run | Scr Mat Min Matter Collected 436 | 171 265 . Remotely . | . . . Salvage Created 501 | . 501 . Parts 23 | . 23 . Haulers Intercepted . | . . . Recyclers Shooed 1 | . 1 . Parts Field Recycled . | . . . Retrieved Matter . | . . . Parts Self-Destructed . | . . . Prevented . | . . . Kills | -11 -10 -10 ------- Run | Scr Mat Min Combat Hostiles Destroyed 10 | . 10 . Guns 10 | . 10 . Classes Destroyed 3 | . 3 . Worker 1 | . 1 . Recycler 1 | . 1 . Grunt 10 | . 10 . Best Kill Streak 3 | . 3 . Combat Bots Only 3 | . 3 . Max Kills in Single Turn 1 | . 1 . Gunslinging . | . . . Exploded . | . . . Melee . | . . . Uniques/NPCs Destroyed . | . . . Combat | -11 -10 -10 -------- Run | Scr Mat Min Damage Taken 849 | . 550 299 Core 254 | . 170 84 Absorbed by Shields . | . . . Core Remaining (%) 100 | 100 . . Volleys Fired 60 | . 48 12 Largest 2 | . 2 2 Hottest 60 | . 60 60 Shots Fired 116 | . 95 21 Gun 116 | . 95 21 Cannon . | . . . Launcher . | . . . Special . | . . . Kinetic 57 | . 47 10 Thermal 59 | . 48 11 Explosive . | . . . Electromagnetic . | . . . Robot Hit Streak 10 | . 9 10 Robot Miss Streak 4 | . 4 1 Penetration Max . | . . . Secondary Targets . | . . . Shots Hit Robots 87 | . 68 19 Core Hits 28 | . 27 1 Critical Kills . | . . . Critical Parts Destroyed . | . . . Critical Strikes . | . . . Melee Attacks . | . . . Impact . | . . . Slashing . | . . . Piercing . | . . . Sneak Attacks . | . . . Combat Hostiles . | . . . Follow-up Attacks . | . . . Damage Inflicted 1038 | . 805 233 Guns 1038 | . 805 233 Cannons . | . . . Explosions . | . . . Melee . | . . . Ramming . | . . . Kinetic 537 | . 425 112 Thermal 501 | . 380 121 Explosive . | . . . Electromagnetic . | . . . Impact . | . . . Slashing . | . . . Piercing . | . . . Highest Corruption 4 | . 4 4 Average Corruption 3 | . 3 4 Corruption Purged . | . . . Corruption Blocked . | . . . Effects 17 | . 7 10 Message Errors 6 | . 4 2 Matter Fused 4 | . 1 3 Energy Discharges 4 | . 1 3 Alerts 1 | . . 1 Weapon Failures 2 | . 1 1 Overload Shots . | . . . Overflow Damage . | . . . Projectiles . | . . . Explosions . | . . . Melee . | . . . Knockbacks . | . . . Impact . | . . . Kinetic . | . . . Secondary . | . . . Self-Inflicted Damage . | . . . Shots . | . . . Rammed . | . . . Targets Rammed . | . . . Kicked . | . . . Crushed . | . . . Highest Temperature 69 | . 69 1 Average Temperature 32 | . 41 1 Received Heat Transfer 507 | . 336 171 Siege Activations . | . . . Robots Corrupted . | . . . Combat Hostiles . | . . . Parts Fried . | . . . Impact Corruptions . | . . . Robots Melted . | . . . Combat Hostiles . | . . . Parts Melted 1 | . 1 . Heat Transferred 1150 | . 875 275 Parts Sabotaged . | . . . Parts Stolen . | . . . Parts Stripped . | . . . Power Chain Reactions . | . . . Missiles Intercepted . | . . . Alert | -11 -10 -10 ------- Run | Scr Mat Min Peak Influence 193 | . 193 73 Initial 43 | . . 43 Average 64 | . 82 50 Maximum Alert Level 1 | . 1 . Low Security (%) 99 | 100 99 100 Level 1 . | . . . Level 2 . | . . . Level 3 . | . . . Level 4 . | . . . Level 5 . | . . . High Security . | . . . Max Security . | . . . Squads Dispatched 2 | . 2 . Investigation 1 | . 1 . Extermination . | . . . Reinforcement 1 | . 1 . Assault . | . . . Garrison . | . . . Intercept . | . . . Searches Triggered . | . . . Construction Impeded . | . . . Haulers Reinforced . | . . . Active Scanning Responses . | . . . Cargo Convoy Interrupts . | . . . Stealth | -11 -10 -10 --------- Run | Scr Mat Min Distress Signals 1 | . 1 . Communications Jammed . | . . . Distress Signals . | . . . Times Spotted 19 | . 16 3 Peak Tracking Total 3 | . 3 2 Tactical Retreats 2 | . 1 1 Traps | -11 -10 -10 ------- Run | Scr Mat Min Traps Triggered 4 | . 4 . Indirectly . | . . . Trap Hack Attempts . | . . . Triggered . | . . . Disarmed . | . . . Reprogrammed . | . . . Reused . | . . . Traps Extracted . | . . . Installed . | . . . Triggered . | . . . Most Traps Carried 1 | . . 1 Machines | -11 -10 -10 ---------- Run | Scr Mat Min Machines Disabled . | . . . Max in Single Turn . | . . . Machines Sabotaged . | . . . Garrisons Compromised . | . . . Overloaded Fab Kills . | . . . Hacking | -11 -10 -10 --------- Run | Scr Mat Min Machines Accessed . | . . . Terminals . | . . . Fabricators . | . . . Repair Stations . | . . . Recycling Units . | . . . Scanalyzers . | . . . Garrison Access . | . . . Total Hacks . | . . . Successful . | . . . Failed . | . . . Catastrophic . | . . . Database Lockouts . | . . . Manual . | . . . Terminals . | . . . Fabricators . | . . . Repair Stations . | . . . Recycling Units . | . . . Scanalyzers . | . . . Garrison Access . | . . . Terminal Hacks . | . . . Fabricator Hacks . | . . . Repair Station Hacks . | . . . Recycling Unit Hacks . | . . . Scanalyzer . | . . . Garrison Access Hacks . | . . . Unauthorized Hacks . | . . . Terminals . | . . . Fabricators . | . . . Repair Stations . | . . . Recycling Units . | . . . Scanalyzers . | . . . Garrison Access . | . . . Data Cores Recovered . | . . . Used . | . . . Hacking Detections . | . . . Full Trace Events . | . . . Feedback Events . | . . . Feedback Blocked . | . . . Robot Schematics Acquired . | . . . Robots Built . | . . . Authchips . | . . . Time . | . . . Total Robot Build Rating . | . . . Part Schematics Acquired . | . . . Parts Built . | . . . Authchips . | . . . Time . | . . . Total Part Build Rating . | . . . Parts Repaired . | . . . Time . | . . . Parts Recycled . | . . . Recycled Matter . | . . . Retrieved Matter . | . . . Retrieved Components . | . . . Parts Scanalyzed . | . . . Part Schematics Acquired . | . . . Parts Damaged . | . . . Bothacking | -11 -10 -10 ------------ Run | Scr Mat Min Used RIF Installer . | . . . Robots Hacked . | . . . Non-combat . | . . . Combat . | . . . Robot Hacks Applied . | . . . Relay Couplers Released . | . . . Fabnet Peak Effective % . | . . . Robots Rewired . | . . . Allies Hacked . | . . . Hacks Repelled . | . . . Allies | -11 -10 -10 -------- Run | Scr Mat Min Total Allies . | . . . Largest Group . | . . . Highest-Rated Group . | . . . Highest-Rated Ally . | . . . Total Orders . | . . . Ally Attacks . | . . . Total Damage . | . . . Kills . | . . . Allies Corrupted . | . . . Allies Melted . | . . . Intel | -11 -10 -10 ------- Run | Scr Mat Min Robot Analysis Total . | . . . Derelict Logs Recovered . | . . . Drone Launches . | . . . Drone Recoveries . | . . . Exploration | -11 -10 -10 ------------- Run | Scr Mat Min Turns Passed 940 | 70 536 334 Spaces Moved 427 | 39 221 167 Core 2 | 2 . . Treads 425 | 37 221 167 Legs . | . . . Wheels . | . . . Hover . | . . . Flight . | . . . Fastest Speed 50 | 50 160 160 Average Speed 159 | 154 160 160 Slowest Speed 160 | 160 160 160 Overloaded Moves . | . . . Propulsion Burnouts . | . . . Robots Hopped . | . . . Cave-ins Triggered . | . . . Exploration Rate (%) 28 | 4 45 36 Regions Visited 2 Branch Regions 1 Pre-discovered Areas . | . . . Known Exits Taken . | . . . Unknown Exits Taken 2 | 1 1 . Scrap Searched . | . . . Spaces Dug . | . . . Terrain Destroyed . | . . . Melee . | . . . Projectile . | . . . AOE . | . . . Terrain Rammed . | . . . Walls Destroyed . | . . . Machines Disabled . | . . . Actions | -11 -10 -10 --------- Run | Scr Mat Min Total 565 | 46 307 212 Wait 64 | . 34 30 Move 425 | 38 220 167 Hop . | . . . Pick Up 5 | 2 2 1 Fast Attach 7 | 6 1 . Attach 2 | . 1 1 Detach . | . . . Swap 1 | . 1 . Drop 1 | . . 1 Fire 60 | . 48 12 Melee . | . . . Ram . | . . . Kick . | . . . Crush . | . . . Escape Stasis . | . . . Rewire . | . . . Trap . | . . . Miscellaneous . | . . . Route ------- -11/Scrapyard -10/Materials (discovered 2 exits: [*Mat] / [*Min]) -10/Mines (discovered 1 exit: [*Mat]) History --------- Turn | Location | Event 6 | -11/Scrapyard | Discovered new exit (range 15) 71 | -11/Scrapyard | Entered Materials 315 | -10/Materials | Build established: Mutant 317 | -10/Materials | Discovered new exit (range 8) 488 | -10/Materials | Discovered new exit (range 13) 560 | -10/Materials | Core integrity fell below 50% 607 | -10/Materials | Entered Mines 715 | -10/Mines | Discovered new exit (range 9) 785 | -10/Mines | Found a hidden stash of uninstalled traps 912 | -10/Mines | Core integrity fell below 20% 941 | -10/Mines | Destroyed by G-34 Mercenary with Small Laser Last Messages --------------- 00788_ Acquired Stasis Trap. 00805_ System corrupted: Matter fused (-5). 00805_ Dropped Stasis Trap. 00810_ K-01 Serf collects debris. 00845_ System corrupted: Matter fused (-9). 00867_ K-01 Serf collects debris. 00888_ System corrupted: Energy discharge (-85). 00906_ JE|MTAI=QEPLU60 :8JZ 5 00915_ System corrupted: Sml. Laser failed to cycle. 00928_ G-47 Trooper heat spikes uncontrollably. 00929_ G-47 Trooper heat damages core (-8). 00929_ G-47 Trooper overheating. 00935_ Assault Rifle destroyed. 00937_ Lgt. Treads destroyed. 00937_ G-47 Trooper overheating. 00939_ G-47 Trooper heat spikes uncontrollably. 00939_ Lgt. Treads destroyed. 00939_ G-47 Trooper overheating. 00941_ G-47 Trooper heat damages Aluminum Leg. Map ----- +----------------------------------------------------+ | ????######### #??????## ##???????????????? | | ??? # #???????# #???????????????? | | ?????"" """ # #???????# #???????????????? | | ?????"" """ #???????## ##???????????????? | | ?????"" """ ####????????## ##???????????????? | | ??# #????????????# ######???#??????? | | ??# """ """ #????????????# ## #??????? | | ????""" """ #????????????# #??????? | | ????""" """ #????????????## #??????? | | ???? ####??????????# | | ????########## #?????????# ### | | ????????????# #????????# #??#### ? | | ????????##### #????##### #??????? ? | | ????????# ##???# #??????? | | ????????# #??# ###?# #???### # | | ????????# #???# ### ### #??# #? | | ????????# #????# #?# ### #?? | | ????????# #???## #####?# #??? | | ????????# #?### ##?????###### #???? | | ?????#### ### ##?????????????? ##???? | | ????## #????????????????? ##????? | | ????# #???????????????????#?????? | | ????# #### ##?????????????????????????? | | ????## ##?### &#??????????????????????????? | | ?????# ##??## #########??????????????????? | | ????## #???# ##@ ##?????????????????? | | ??### ##?## g #?????????????????? | | ?## #?# g ##????????????????? | | ?# #?# ##???????????????? | | ?# ## #?## #???????????????? | | ?# #### ##??## #???????????????? | | ?## #???###????## #???????????????? | | ??# ##????????###k #??????????????? | | ??# #????????# #??????????????? | | ??# < ??????#&&& #??????????????? | | ??## #????# & #??????????????? | | ???## #????# ##??????????????? | | ????# ##????# ## ##???????????????? | | ????## ##?????## ###?###????????????????? | | ??????##???????#### ##??????????????????????? | | ??????????????????####???????????????????????? | | ?????????????????????????????????????????????? | | ?????????????????????????????????????????????? | | | | | | | | | | | | | | | +----------------------------------------------------+ Best States ------------- Heat Dissipation 39 Energy Generation 10 Energy Capacity 250 Matter Stores 300 Matter Capacity 300 Sight Range 16 Terrain Scan Density 10 Evasion (%) 40 Recoil Reduction 2 Item Schematics ----------------- None Robot Schematics ------------------ None Fabricated ------------ Nothing Alien Tech Used ----------------- None Achievements -------------- None Challenges ------------ None Game ------ Seed PlasmaStormRedistributor Manual? 0 Play Time 00:04:46 Cumulative 256.8 hours Start 2022.07.14 @ 15:23:00 End 2022.07.14 @ 15:26:43 Sessions 1 Manual Loads 0 Difficulty Rogue Special Mode None Game No. 362 Rogue 275 Adventurer 87 Explorer 0 Win Type - Total 8 Types 4/0/3/1/0/0/0/0/0 Lore% 73 Gallery% 80 Achievement% 68 Wizard Run 0 Options --------- ASCII 0 Keyboard 1 Movement Numpad Keybinds 0 Fullscreen 1 Font 18/Smallcaps Map View 76x50 Tactical HUD 1 Map Filters NONE Filters NONE Steam 1 RUN: e1abebf6-7c01-4e92-82e5-808239b51e3a